bitfinex-derivatives/quotes_SOLF0:USTF0_20250914
["timestamp","ask_amount","ask_price","bid_price","bid_amount"]
[1757816283117,272.32,246.69,246.55,6.76]
[1757816283521,273.15297297,246.69,246.48,6.76]
[1757816283725,273.15297297,246.69,246.57,6.76]
[1757816284328,0.83297297,246.69,246.57,6.76]
[1757816284629,7.21297297,246.72,246.6,6.76]
[1757816285433,0.83297297,246.63,246.5,7.59297297]
[1757816285633,0.83297297,246.6,246.5,6.76]
[1757816286734,0.83297297,246.57,246.5,6.76]
[1757816286934,0.83297297,246.54,246.5,6.76]
[1757816287434,7.21297297,246.54,246.5,6.76]
[1757816287633,7.21297297,246.54,246.45,6.76]
[1757816288134,6.38,246.54,246.45,6.76]
[1757816288335,1.30264518,246.57,246.45,6.76]
[1757816288536,6.38,246.59,246.45,6.76]
[1757816291941,1.30264518,246.57,246.45,6.76]
[1757816292443,6.38,246.56,246.45,6.76]
[1757816296543,6.38,246.52,246.41,0.70598259]
[1757816296745,7.68264518,246.45,246.35,6.76]
[1757816297840,6.38,246.44,246.32,11.89326031]
[1757816298044,6.38,246.4,246.23,6.76]
[1757816298345,6.38,246.4,246.26,0.70637667]
[1757816298553,6.38,246.4,246.26,7.46637667]
[1757816299146,9.68264518,246.43,246.26,7.46637667]
[1757816299346,6.38,246.42,246.27,6.76]
[1757816301144,6.38,246.4,246.27,6.76]
[1757816302444,1.30264518,246.43,246.27,6.76]
[1757816302650,31.24,246.44,246.27,6.76]
[1757816302943,6.38,246.44,246.27,6.76]
[1757816303545,7.68264518,246.44,246.27,6.76]
[1757816303850,6.38,246.44,246.27,6.76]
[1757816304051,6.38,246.44,246.31,6.76]
[1757816304252,57.54,246.5,246.31,6.76]
[1757816304453,6.38,246.5,246.31,6.76]
[1757816304648,1.30264518,246.47,246.31,6.76]
[1757816304854,6.38,246.46,246.31,6.76]
[1757816308052,6.59,246.42,246.31,6.76]
[1757816308754,7.89264518,246.35,246.22,6.53]
[1757816310054,1.30264518,246.39,246.23,6.53]
[1757816310452,6.59,246.38,246.23,6.53]
[1757816314057,14.31,246.38,246.23,6.53]
[1757816315962,6.59,246.38,246.23,6.53]
[1757816316260,6.59,246.38,246.27,6.53]
[1757816317450,6.59,246.42,246.27,6.53]
[1757816318050,6.59,246.42,246.27,7.83264518]
[1757816319859,6.59,246.42,246.27,6.53]
[1757816320261,7.89264518,246.42,246.27,6.53]
[1757816321865,1.30264518,246.38,246.27,6.53]
[1757816322065,6.59,246.38,246.27,6.53]
[1757816323761,6.59,246.45,246.29,6.53]
[1757816324163,6.59,246.45,246.33,6.53]
[1757816325366,6.59,246.52,246.37,6.53]
[1757816328462,6.59,246.48,246.33,6.53]
[1757816329267,6.59,246.44,246.33,6.53]
[1757816332360,1.30264518,246.47,246.33,6.53]
[1757816332761,6.47,246.46,246.33,6.53]
[1757816333361,6.47,246.46,246.28,6.54]
[1757816334763,1.30264518,246.43,246.28,6.54]
[1757816334962,6.47,246.42,246.28,6.54]
[1757816335871,6.47,246.42,246.31,6.54]
[1757816337975,1.30264518,246.47,246.31,6.54]
[1757816342281,8.20264518,246.48,246.31,6.54]
[1757816346885,6.9,246.48,246.31,6.54]
[1757816347084,6.9,246.48,246.33,11.05452992]
[1757816347288,272.62,246.57,246.35,11.05452992]
[1757816347585,272.62,246.57,246.26,25.12264518]
[1757816347586,6.9,246.54,246.39,6.64]
[1757816349392,272.62,246.57,246.43,6.64]
[1757816349779,6.9,246.54,246.43,6.64]
[1757816350484,0.83383552,246.52,246.43,6.64]
[1757816350790,6.9,246.51,246.43,6.64]
[1757816351287,0.83383552,246.55,246.43,6.64]
[1757816351481,7.73383552,246.52,246.43,6.64]
[1757816351890,0.83383552,246.49,246.38,6.64]
[1757816352190,6.9,246.48,246.38,6.64]
[1757816352390,6.9,246.58,246.41,6.64]
[1757816352590,0.83383552,246.55,246.44,6.64]
[1757816353281,7.73383552,246.58,246.47,6.64]
[1757816353686,0.83383552,246.55,246.47,6.64]
[1757816354591,0.83383552,246.56,246.47,6.64]
[1757816356085,0.83383552,246.59,246.47,6.64]
[1757816356400,0.83383552,246.59,246.5,6.64]
[1757816356693,0.83383552,246.59,246.5,19.03296543]
[1757816356890,0.83383552,246.59,246.5,6.64]
[1757816357499,0.83383552,246.53,246.45,6.64]
[1757816357699,0.83383552,246.53,246.45,18.58900401]
[1757816357887,6.9,246.55,246.45,18.58900401]
[1757816358090,0.83383552,246.53,246.45,18.58900401]
[1757816358494,6.9,246.55,246.45,18.58900401]
[1757816358993,2.1710483,246.59,246.45,18.58900401]
[1757816359192,9.0710483,246.59,246.45,18.58900401]
[1757816359395,9.0710483,246.59,246.46,6.64]
[1757816359596,6.9,246.59,246.46,6.64]
[1757816360197,6.9,246.54,246.4,6.64]
[1757816360702,6.9,246.53,246.4,18.5111198]
[1757816360897,6.9,246.53,246.4,6.64]
[1757816367295,2.1710483,246.5,246.38,11.94876937]
[1757816367500,6.9,246.49,246.36,6.64]
[1757816369204,6.9,246.49,246.37,6.6]
[1757816369508,13.42,246.53,246.37,6.6]
[1757816369708,15.65,246.54,246.37,6.6]
[1757816369908,6.81,246.54,246.37,6.6]
[1757816372406,2.1710483,246.5,246.37,6.6]
[1757816372610,6.81,246.49,246.37,6.6]
[1757816373013,6.81,246.49,246.32,272.58]
[1757816373208,6.81,246.49,246.32,279.18]
[1757816373609,2.1710483,246.5,246.32,279.18]
[1757816373917,26.1,246.56,246.27,11.01452992]
[1757816373918,6.81,246.44,246.27,11.01452992]
[1757816374112,6.81,246.42,246.27,6.6]
[1757816374607,2.1710483,246.39,246.27,6.6]
[1757816375413,2.1710483,246.41,246.27,6.6]
[1757816375606,6.81,246.42,246.27,6.6]
[1757816377104,6.81,246.4,246.27,6.6]
[1757816384618,6.81,246.45,246.27,6.6]
[1757816384809,6.81,246.45,246.28,6.6]
[1757816385011,6.81,246.45,246.27,2.1710483]
[1757816385012,6.81,246.45,246.3,6.6]
[1757816385410,6.81,246.45,246.31,6.6]
[1757816386316,7.64432814,246.45,246.33,0.83432814]
[1757816386820,0.83432814,246.42,246.31,7.43432814]
[1757816387016,0.83432814,246.39,246.31,6.6]
[1757816388423,6.81,246.41,246.31,6.6]
[1757816394928,6.75,246.41,246.27,6.37]
[1757816400637,6.75,246.41,246.27,4.41452992]
[1757816400937,6.75,246.41,246.28,6.76]
[1757816401228,6.39,246.51,246.29,6.76]
[1757816401935,6.39,246.51,246.29,11.17452992]
[1757816402130,6.39,246.51,246.32,4.41452992]
[1757816402331,6.39,246.51,246.33,6.76]
[1757816402635,6.39,246.51,246.34,6.76]
[1757816404932,102.62,246.5,246.34,6.76]
[1757816405329,6.39,246.51,246.34,6.76]
[1757816405526,6.39,246.51,246.36,6.76]
[1757816406436,6.39,246.61,246.4,6.76]
[1757816406632,6.39,246.61,246.41,4.41452992]
[1757816406837,6.39,246.61,246.42,6.76]
[1757816407038,6.39,246.59,246.42,11.17452992]
[1757816407242,41.93,246.59,246.42,6.76]
[1757816407734,41.93,246.59,246.42,11.17452992]
[1757816408237,41.93,246.59,246.42,6.76]
[1757816408633,44.10341597,246.59,246.42,6.76]
[1757816409440,78.87,246.59,246.42,6.76]
[1757816409733,6.39,246.59,246.42,6.76]
[1757816410336,6.39,246.59,246.43,6.76]
[1757816410536,3.4258362,246.68,246.43,6.76]
[1757816410735,108.99,246.67,246.46,11.17452992]
[1757816411041,6.39,246.66,246.46,6.76]
[1757816416547,3.4258362,246.63,246.46,6.76]
[1757816416740,6.39,246.62,246.46,6.76]
[1757816419446,6.39,246.62,246.37,6.76]
[1757816419641,6.39,246.57,246.37,6.76]
[1757816419941,108.93,246.57,246.37,6.76]
[1757816421738,6.39,246.57,246.37,6.76]
[1757816422144,6.39,246.57,246.37,4.41452992]
[1757816422344,6.39,246.57,246.38,6.76]
[1757816422547,6.39,246.57,246.38,4.41452992]
[1757816422744,6.39,246.57,246.39,6.76]
[1757816423051,6.39,246.57,246.4,4.41452992]
[1757816423249,6.39,246.57,246.41,6.76]
[1757816423450,284.77,246.69,246.41,6.76]
[1757816423451,6.39,246.62,246.41,4.41452992]
[1757816423750,6.39,246.62,246.42,6.76]
[1757816424947,41.05,246.62,246.42,6.76]
[1757816425151,6.39,246.62,246.42,6.76]
[1757816429954,6.39,246.62,246.44,6.58]
[1757816434557,6.39,246.62,246.47,6.58]
[1757816436948,6.39,246.62,246.46,1.30184512]
[1757816436949,6.39,246.62,246.5,1.30184512]
[1757816437154,1.30184512,246.68,246.5,1.30184512]
[1757816437155,6.67,246.67,246.51,6.58]
[1757816442260,6.67,246.67,246.52,6.58]
[1757816443858,1.30184512,246.66,246.52,6.58]
[1757816444154,1.30184512,246.58,246.48,6.58]
[1757816444361,6.67,246.57,246.48,6.58]
[1757816448450,1.30184512,246.63,246.48,12.29637504]
[1757816448757,6.67,246.65,246.52,6.58]
[1757816449655,6.67,246.65,246.53,6.58]
[1757816451059,6.67,246.65,246.53,10.99452992]
[1757816453064,6.67,246.65,246.53,6.58]
[1757816453356,6.67,246.65,246.54,6.77]
[1757816454762,6.67,246.65,246.54,18.78274421]
[1757816454963,6.67,246.65,246.54,23.19727413]
[1757816455357,6.67,246.65,246.56,6.77]
[1757816455556,6.67,246.65,246.57,4.41452992]
[1757816455958,6.67,246.8,246.58,4.41452992]
[1757816456166,6.67,246.72,246.59,4.41452992]
[1757816456360,6.67,246.72,246.58,4.41452992]
[1757816457062,6.67,246.72,246.57,11.18452992]
[1757816457264,1.30184512,246.73,246.57,11.18452992]
[1757816457664,6.49,246.72,246.57,11.18452992]
[1757816457866,1.30184512,246.69,246.57,11.18452992]
[1757816458067,1.30184512,246.69,246.57,6.77]
[1757816458068,6.49,246.68,246.57,6.77]
[1757816458959,6.49,246.64,246.57,6.77]
[1757816462268,284.55,246.81,246.57,6.77]
[1757816462470,1.30184512,246.76,246.6,11.12452992]
[1757816462674,1.30184512,246.76,246.62,4.41452992]
[1757816462871,1.30184512,246.76,246.63,6.71]
[1757816463476,6.49,246.77,246.63,6.71]
[1757816463675,272.38,246.81,246.65,11.12452992]
[1757816463866,6.49,246.82,246.68,6.71]
[1757816464071,6.49,246.82,246.69,6.71]
[1757816466974,1.30184512,246.85,246.69,6.71]
[1757816467365,1.30184512,246.85,246.7,6.71]
[1757816467566,6.49,246.84,246.7,6.71]
[1757816467976,13.47184512,246.96,246.7,8.01184512]
[1757816467977,6.49,246.89,246.7,8.01184512]
[1757816468168,6.49,246.89,246.71,6.71]
[1757816468574,6.49,246.89,246.71,4.41452992]
[1757816468772,6.49,246.89,246.72,6.71]
[1757816468974,6.49,246.89,246.75,6.71]
[1757816471375,1.30184512,246.92,246.75,6.71]
[1757816471680,6.49,246.93,246.79,6.71]
[1757816471977,6.49,246.93,246.8,6.71]
[1757816472271,1.30184512,247.0,246.83,6.71]
[1757816472479,0.83071655,246.94,246.86,6.71]
[1757816472673,0.83071655,246.94,246.82,0.83071655]
[1757816472878,0.83071655,246.91,246.81,6.71]
[1757816473078,0.83071655,246.88,246.81,6.71]
[1757816473279,0.83071655,246.88,246.76,108.95]
[1757816473778,0.83071655,246.85,246.76,6.71]
[1757816476084,0.83071655,246.85,246.75,272.18]
[1757816476376,7.32071655,246.82,246.75,272.18]
[1757816476681,7.32071655,246.82,246.72,6.71]
[1757816477677,6.49,246.82,246.69,103.05071655]
[1757816477983,6.49,246.79,246.69,0.83071655]
[1757816478880,6.49,246.76,246.65,0.83071655]
[1757816480383,0.83071655,246.74,246.65,0.83071655]
[1757816480584,6.49,246.73,246.62,7.54071655]
[1757816481181,0.83071655,246.72,246.62,7.54071655]
[1757816481382,6.49,246.71,246.61,272.14]
[1757816482377,0.83071655,246.72,246.59,103.05071655]
[1757816482683,6.49,246.68,246.59,103.05071655]
[1757816483076,19.85,246.83,246.55,0.83071655]
[1757816483077,6.49,246.65,246.55,0.83071655]
[1757816483281,6.49,246.65,246.56,102.22]
[1757816484581,6.49,246.65,246.55,0.83071655]
[1757816485281,6.49,246.65,246.54,12.14967194]
[1757816485587,0.83071655,246.63,246.53,6.71]
[1757816485886,6.49,246.65,246.53,6.71]
[1757816486879,6.49,246.65,246.55,0.83071655]
[1757816487884,6.49,246.65,246.54,11.9891518]
[1757816488080,6.98,246.65,246.53,6.71]
[1757816488280,6.98,246.62,246.53,6.71]
[1757816490786,7.81071655,246.62,246.53,6.71]
[1757816491589,0.83071655,246.62,246.46,6.88]
[1757816491791,20.41,246.72,246.46,6.88]
[1757816491792,7.81071655,246.58,246.46,6.88]
[1757816491982,7.81071655,246.58,246.47,0.83071655]
[1757816493186,6.98,246.58,246.47,12.75807118]
[1757816494390,6.98,246.57,246.47,12.75807118]
[1757816495880,6.98,246.57,246.47,11.92735463]
[1757816496089,6.98,246.57,246.46,7.71071655]
[1757816496993,6.98,246.57,246.47,0.83071655]
[1757816497191,6.98,246.57,246.47,13.16558407]
[1757816497392,6.98,246.57,246.47,0.83071655]
[1757816501189,6.98,246.57,246.46,6.88]
[1757816501386,6.98,246.57,246.47,0.83071655]
[1757816502693,0.83071655,246.56,246.46,19.08155238]
[1757816502894,6.98,246.55,246.46,19.08155238]
[1757816504294,6.98,246.55,246.47,0.83071655]
[1757816509298,0.83071655,246.61,246.5,0.83071655]
[1757816509497,6.98,246.6,246.5,0.83071655]
[1757816510697,6.98,246.6,246.56,0.83071655]
[1757816510906,6.98,246.6,246.56,7.71071655]
[1757816511105,6.98,246.67,246.59,0.83071655]
[1757816512199,6.81,246.7,246.62,0.83071655]
[1757816513500,6.81,246.7,246.59,6.99]
[1757816513501,102.22,246.76,246.65,0.83071655]
[1757816513706,6.81,246.75,246.65,0.83071655]
[1757816515808,7.64071655,246.75,246.64,0.83071655]
[1757816518410,7.64071655,246.75,246.65,0.83071655]
[1757816518611,6.81,246.75,246.68,0.83071655]
[1757816518802,6.81,246.75,246.72,0.83071655]
[1757816519004,6.81,246.75,246.67,6.95]
[1757816519614,0.83071655,246.77,246.67,6.95]
[1757816521815,7.03,246.76,246.67,6.95]
[1757816522212,7.03,246.76,246.68,0.83071655]
[1757816523014,7.03,246.76,246.69,6.95]
[1757816526516,7.03,246.79,246.69,6.95]
[1757816529924,7.86071655,246.79,246.69,6.95]
[1757816532418,7.03,246.79,246.69,6.95]
[1757816533022,7.03,246.79,246.65,6.95]
[1757816534723,7.03,246.77,246.65,6.95]
[1757816535622,7.03,246.73,246.55,6.95]
[1757816535822,7.03,246.73,246.58,1.30005773]
[1757816536018,7.03,246.81,246.59,6.95]
[1757816536223,7.03,246.81,246.62,1.30005773]
[1757816536426,8.33005773,246.81,246.63,6.95]
[1757816537020,7.03,246.72,246.56,6.6283248]
[1757816537228,7.03,246.68,246.57,6.95]
[1757816538622,1.30005773,246.71,246.57,6.95]
[1757816539123,7.03,246.72,246.57,6.95]
[1757816539524,1.30005773,246.7,246.57,6.95]
[1757816539729,8.33005773,246.7,246.57,6.95]
[1757816544427,7.03,246.65,246.5,6.95]
[1757816546026,1.30005773,246.7,246.5,6.95]
[1757816546027,7.03,246.61,246.5,6.95]
[1757816548325,1.30005773,246.62,246.46,18.9204711]
[1757816548629,1.30005773,246.58,246.46,11.9604711]
[1757816548829,1.30005773,246.58,246.43,32.94049652]
[1757816548830,27.82,246.57,246.43,32.94049652]
[1757816549029,6.76,246.56,246.43,32.94049652]
[1757816549226,6.76,246.53,246.42,6.96]
[1757816550835,6.76,246.53,246.42,19.04307936]
[1757816553032,272.28,246.69,246.42,19.04307936]
[1757816553033,6.76,246.57,246.43,6.96]
[1757816553233,108.84,246.57,246.43,6.96]
[1757816553537,6.76,246.57,246.43,6.96]
[1757816553933,102.08,246.58,246.43,6.96]
[1757816553934,1.30005773,246.55,246.43,6.96]
[1757816554133,1.30005773,246.55,246.42,12.244404]
[1757816554338,1.30005773,246.55,246.38,6.96]
[1757816554339,6.76,246.54,246.38,6.96]
[1757816555330,6.76,246.54,246.38,18.84184653]
[1757816555733,1.30005773,246.51,246.38,18.84184653]
[1757816556335,10.92,246.5,246.38,18.84184653]
[1757816556640,6.76,246.49,246.38,18.84184653]
[1757816557342,14.54,246.49,246.38,18.84184653]
[1757816558137,6.76,246.49,246.38,18.84184653]
[1757816558334,14.54,246.49,246.38,18.84184653]
[1757816558933,6.76,246.48,246.38,18.84184653]
[1757816559131,6.76,246.46,246.38,6.96]
[1757816565744,7.78,246.49,246.38,6.96]
[1757816566545,6.76,246.5,246.38,6.96]
[1757816567348,24.59139211,246.66,246.42,6.96]
[1757816567349,6.42,246.55,246.42,6.96]
[1757816568240,6.76,246.56,246.42,6.96]
[1757816568645,12.17,246.68,246.46,6.96]
[1757816568844,6.76,246.64,246.46,6.96]
[1757816569043,6.76,246.6,246.46,6.96]
[1757816571049,34.06,246.59,246.46,6.96]
[1757816571551,6.76,246.6,246.46,6.96]
[1757816571948,6.76,246.6,246.47,1.30005773]
[1757816572250,6.76,246.6,246.48,6.82]
[1757816576348,6.85,246.66,246.52,6.82]
[1757816576758,6.85,246.66,246.54,6.82]
[1757816580660,102.02,246.65,246.54,6.82]
[1757816580865,6.85,246.66,246.54,6.82]
[1757816581164,102.02,246.65,246.54,6.82]
[1757816581560,102.02,246.64,246.54,6.82]
[1757816581760,6.5,246.63,246.54,6.82]
[1757816582064,108.5,246.63,246.54,6.82]
[1757816583061,109.80005773,246.63,246.54,6.82]
[1757816585761,7.80005773,246.63,246.54,6.82]
[1757816586166,102.0,246.62,246.54,6.82]
[1757816586361,7.80005773,246.63,246.54,6.82]
[1757816586667,101.98,246.61,246.54,6.82]
[1757816587065,7.80005773,246.63,246.54,6.82]
[1757816588068,101.98,246.62,246.54,6.82]
[1757816588258,7.80005773,246.63,246.54,6.82]
[1757816588464,6.5,246.63,246.54,6.82]
[1757816588666,101.98,246.65,246.54,6.82]
[1757816589065,1.30005773,246.67,246.54,6.82]
[1757816589367,101.98,246.66,246.54,6.82]
[1757816591567,6.5,246.68,246.54,6.82]
[1757816592266,6.5,246.64,246.54,6.82]
[1757816594263,6.5,246.69,246.54,6.82]
[1757816594468,0.8327847,246.67,246.57,6.83]
[1757816595870,0.8327847,246.65,246.57,6.83]
[1757816597571,6.5,246.61,246.5,0.8327847]
[1757816597774,6.5,246.61,246.51,6.83]
[1757816607483,7.3327847,246.56,246.47,6.83]
[1757816609190,0.8327847,246.53,246.47,6.83]
[1757816609993,6.5,246.56,246.47,6.83]
[1757816610492,0.8327847,246.54,246.47,6.83]
[1757816610692,6.56,246.53,246.47,6.83]
[1757816613395,0.8327847,246.59,246.47,7.6627847]
[1757816613584,0.8327847,246.59,246.48,4.41113715]
[1757816613790,0.8327847,246.59,246.49,6.87]
[1757816614084,0.8327847,246.59,246.49,11.28113715]
[1757816614490,0.8327847,246.59,246.5,4.41113715]
[1757816614794,0.8327847,246.59,246.49,11.28113715]
[1757816615092,0.8327847,246.59,246.5,4.41113715]
[1757816615986,0.8327847,246.59,246.49,11.28113715]
[1757816616691,0.8327847,246.59,246.5,4.41113715]
[1757816617493,0.8327847,246.59,246.49,11.28113715]
[1757816618999,6.56,246.65,246.54,0.8327847]
[1757816619193,6.56,246.65,246.56,6.87]
[1757816620003,6.56,246.65,246.57,7.7027847]
[1757816620199,6.56,246.65,246.57,12.11392185]
[1757816620496,7.3927847,246.69,246.58,6.87]
[1757816621289,7.3927847,246.69,246.59,4.41113715]
[1757816621499,0.8327847,246.72,246.6,12.11392185]
[1757816621797,6.56,246.74,246.63,0.8327847]
[1757816622498,6.56,246.74,246.63,13.17908089]
[1757816622701,6.56,246.74,246.63,0.8327847]
[1757816623198,0.8327847,246.73,246.63,0.8327847]
[1757816624898,0.8327847,246.73,246.64,6.87]
[1757816636008,0.8327847,246.67,246.59,6.72]
[1757816638216,0.8327847,246.67,246.59,18.87378007]
[1757816639917,0.8327847,246.67,246.59,12.15378007]
[1757816640112,0.8327847,246.67,246.6,6.65]
[1757816642819,0.8327847,246.69,246.6,6.65]
[1757816643624,0.8327847,246.72,246.6,11.06113715]
[1757816643918,0.8327847,246.72,246.61,6.65]
[1757816645023,7.2627847,246.72,246.61,6.65]
[1757816646118,7.2627847,246.69,246.61,6.65]
[1757816652927,7.2627847,246.69,246.59,12.12167919]
[1757816653131,7.2627847,246.66,246.57,6.65]
[1757816654236,6.43,246.66,246.57,6.65]
[1757816655733,6.43,246.66,246.57,18.84245698]
[1757816658435,6.43,246.72,246.58,6.65]
[1757816658635,6.43,246.72,246.58,11.06113715]
[1757816658832,7.2,246.73,246.58,11.06113715]
[1757816659139,6.43,246.72,246.58,11.06113715]
[1757816659438,7.2,246.73,246.58,11.06113715]
[1757816659838,6.43,246.72,246.58,11.06113715]
[1757816660036,7.2,246.73,246.58,11.06113715]
[1757816660740,6.43,246.73,246.58,11.06113715]
[1757816661141,6.43,246.73,246.59,4.41113715]
[1757816663144,6.43,246.73,246.6,4.41113715]
[1757816663546,6.43,246.73,246.61,6.65]
[1757816666242,27.16123657,246.74,246.61,11.06113715]
[1757816666645,6.43,246.73,246.61,11.06113715]
[1757816666846,27.16123657,246.74,246.61,11.06113715]
[1757816667046,6.43,246.73,246.61,11.06113715]
[1757816667242,27.16123657,246.74,246.61,11.06113715]
[1757816667445,6.43,246.73,246.61,11.06113715]
[1757816667644,27.16123657,246.74,246.61,11.06113715]
[1757816667944,6.72,246.73,246.61,11.06113715]
[1757816668144,27.16123657,246.74,246.61,11.06113715]
[1757816668351,6.72,246.73,246.61,11.06113715]
[1757816668544,27.16123657,246.74,246.61,11.06113715]
[1757816669150,6.72,246.73,246.61,11.06113715]
[1757816669751,27.16123657,246.74,246.61,11.06113715]
[1757816670150,12.17,246.82,246.61,11.06113715]
[1757816670348,6.72,246.72,246.61,11.06113715]
[1757816671453,6.72,246.72,246.62,4.41113715]
[1757816671944,6.72,246.72,246.61,11.06113715]
[1757816674257,6.72,246.72,246.61,4.41113715]
[1757816674454,6.72,246.72,246.64,6.63]
[1757816675555,6.72,246.72,246.64,11.04113715]
[1757816675955,101.52,246.78,246.65,6.63]
[1757816676154,6.72,246.77,246.65,6.63]
[1757816676452,33.36,246.8,246.65,11.04113715]
[1757816676655,1.30123657,246.78,246.65,11.04113715]
[1757816677455,6.72,246.77,246.65,11.04113715]
[1757816677660,6.72,246.77,246.65,4.41113715]
[1757816677956,6.72,246.77,246.66,6.63]
[1757816684265,6.72,246.77,246.69,6.63]
[1757816684755,1.30123657,246.81,246.69,6.63]
[1757816684956,8.02123657,246.81,246.7,6.63]
[1757816685561,6.72,246.81,246.7,6.63]
[1757816694663,6.45,246.85,246.7,6.63]
[1757816694861,6.45,246.82,246.7,6.63]
[1757816697359,6.45,246.93,246.72,6.75]
[1757816697565,6.45,246.87,246.74,6.75]
[1757816700378,6.45,246.87,246.75,1.30123657]
[1757816700575,6.9,247.0,246.8,6.39]
[1757816700877,6.9,246.96,246.84,6.39]
[1757816703979,6.9,246.94,246.84,6.39]
[1757816707280,6.9,246.94,246.84,18.67235403]
[1757816709372,6.9,246.94,246.85,6.39]
[1757816713683,10.62,246.97,246.85,6.39]
[1757816713981,10.62,246.97,246.85,7.69123657]
[1757816715184,10.62,246.97,246.85,6.39]
[1757816715586,6.9,246.96,246.85,6.39]
[1757816716486,6.9,246.94,246.85,6.39]
[1757816722788,6.9,246.94,246.87,6.39]
[1757816738205,6.75,247.1,246.89,0.83094129]
[1757816738415,272.0,247.12,246.82,101.06]
[1757816738416,6.75,247.02,246.92,0.83094129]
[1757816738610,6.75,247.02,246.93,6.38]
[1757816739109,7.58094129,247.07,246.96,6.38]
[1757816739309,7.58094129,247.07,246.96,7.21094129]
[1757816740300,0.83094129,247.12,247.0,6.38]
[1757816740505,6.75,247.11,247.0,6.38]
[1757816740705,0.83094129,247.09,247.0,6.38]
[1757816740906,6.75,247.08,247.0,6.38]
[1757816742608,0.83094129,247.06,246.96,6.38]
[1757816742912,0.83094129,247.04,246.96,6.38]
[1757816744708,6.75,247.03,246.96,6.38]
[1757816753528,6.75,247.03,246.97,0.83094129]
[1757816761034,6.75,247.03,246.96,6.38]
[1757816761337,6.75,247.03,246.97,0.83094129]
[1757816764036,6.75,247.03,246.94,6.41]
[1757816764240,6.75,247.03,246.97,0.83094129]
[1757816764734,6.75,247.03,246.91,4.41113715]
[1757816764937,6.9,247.0,246.9,0.83094129]
[1757816767733,7.73094129,247.0,246.89,6.41]
[1757816767934,0.83094129,246.97,246.86,4.41113715]
[1757816768134,6.9,246.96,246.85,6.41]
[1757816768333,6.9,246.96,246.89,0.83094129]
[1757816768534,6.9,247.03,246.93,6.41]
[1757816768839,6.9,247.03,246.96,6.41]
[1757816770341,6.9,247.09,246.99,6.41]
[1757816772339,0.83094129,247.07,246.95,11.65207844]
[1757816772539,52.1,247.14,246.95,11.65207844]
[1757816772741,6.9,247.05,246.95,11.65207844]
[1757816772942,0.83094129,247.06,246.95,7.24094129]
[1757816773140,6.9,247.05,246.95,7.24094129]
[1757816776343,1.29759911,247.06,246.91,10.82113715]
[1757816776550,6.9,247.05,246.91,6.41]
[1757816776849,6.9,247.01,246.87,10.82113715]
[1757816777049,1.29759911,247.02,246.87,10.82113715]
[1757816777450,6.9,247.01,246.87,6.41]
[1757816778056,1.29759911,247.02,246.87,10.82113715]
[1757816778349,6.9,247.01,246.87,6.41]
[1757816778947,27.8,247.04,246.85,4.41113715]